[Event "Gibraltar Masters 18th"]
[Site "Gibraltar"]
[Date "2020.01.21"]
[Round "1.12"]
[White "Jones, Gawain C B"]
[Black "Salimova, Nurgyul"]
[Result "1/2-1/2"]
[ECO "B12"]
[WhiteElo "2679"]
[BlackElo "2372"]
[PlyCount "132"]
[EventDate "2020.01.21"]
[EventType "swiss"]
[EventRounds "10"]
[EventCountry "GGB"]
[SourceTitle "BritBase"]
[Source "John Saunders"]
[SourceDate "2021.06.05"]
[SourceVersion "1"]
[SourceVersionDate "2021.06.05"]
[SourceQuality "1"]
[TimeControl "40/100:0"]
[WhiteClock "0:14:58"]
[BlackClock "0:30:05"]

1. e4 {[%emt 0:00:00]} c6 {[%emt 0:00:00]} 2. d4 {[%emt 0:00:00]} d5 {[%emt 0:
00:00]} 3. e5 {[%emt 0:00:00]} Bf5 {[%emt 0:00:00]} 4. h4 {[%emt 0:00:00]} h6 {
[%emt 0:00:00]} 5. Bd3 {[%emt 0:00:00]} Bxd3 {[%emt 0:00:00]} 6. cxd3 {[%emt 0:
00:00]} e6 {[%emt 0:00:00]} 7. Nc3 {[%emt 0:00:00]} Ne7 {[%emt 0:00:00]} 8. h5
{[%emt 0:00:00]} Qb6 {[%emt 0:00:00]} 9. Nf3 {[%emt 0:00:00]} Nf5 {[%emt 0:00:
00]} 10. Kf1 {[%emt 0:00:00]} Nd7 {[%emt 0:00:00]} 11. Na4 {[%emt 0:00:00]} Qa6
{[%emt 0:00:00]} 12. g4 {[%emt 0:00:00]} Ne7 {[%emt 0:00:00]} 13. Kg2 {[%emt 0:
00:00]} Nc8 {[%emt 0:00:00]} 14. Qc2 {[%emt 0:00:00]} Ncb6 {[%emt 0:00:00]} 15.
Nc5 {[%emt 0:00:00]} Nxc5 {[%emt 0:00:00]} 16. dxc5 {[%emt 0:00:00]} Qa4 {
[%emt 0:00:00]} 17. Qxa4 {[%emt 0:00:00]} Nxa4 {[%emt 0:00:00]} 18. d4 {
[%emt 0:00:00]} b6 {[%emt 0:00:00]} 19. b4 {[%emt 0:00:00]} Be7 {[%emt 0:00:00]
} 20. Nd2 {[%emt 0:00:00]} a5 {[%emt 0:00:00]} 21. a3 {[%emt 0:00:00]} Kd7 {
[%emt 0:00:00]} 22. Rh3 {[%emt 0:00:00]} f6 {[%emt 0:00:00]} 23. f4 {[%emt 0:
00:00]} fxe5 {[%emt 0:00:00]} 24. fxe5 {[%emt 0:00:00]} Rhf8 {[%emt 0:00:00]}
25. Nb3 {[%emt 0:00:00]} axb4 {[%emt 0:00:00]} 26. axb4 {[%emt 0:00:00]} b5 {
[%emt 0:00:00]} 27. Ra2 {[%emt 0:00:00]} Rf7 {[%emt 0:00:00]} 28. Rf2 {[%emt 0:
00:00]} Rxf2+ {[%emt 0:00:00]} 29. Kxf2 {[%emt 0:00:00]} Nb2 {[%emt 0:00:00]}
30. Rf3 {[%emt 0:00:00]} Nc4 {[%emt 0:00:00]} 31. g5 {[%emt 0:00:00]} hxg5 {
[%emt 0:00:00]} 32. Rf7 {[%emt 0:00:00]} Rf8 {[%emt 0:00:00]} 33. Rxf8 {
[%emt 0:00:00]} Bxf8 {[%emt 0:00:00]} 34. Kf3 {[%emt 0:00:00]} Be7 {[%emt 0:00:
00]} 35. Kg4 {[%emt 0:00:00]} Ke8 {[%emt 0:00:00]} 36. Na1 {[%emt 0:00:00]} Kf7
{[%emt 0:00:00]} 37. Nc2 {[%emt 0:00:00]} Bf8 {[%emt 0:00:00]} 38. Kxg5 {
[%emt 0:00:00]} Be7+ {[%emt 0:00:00]} 39. Kg4 {[%emt 0:00:00]} Bf8 {[%emt 0:00:
00]} 40. Ne1 {[%emt 0:00:00]} Be7 {[%emt 0:00:00]} 41. Nf3 {[%emt 0:00:00]} Bd8
{[%emt 0:00:18]} 42. Ng5+ {[%emt 0:00:00]} Ke7 {[%emt 0:00:00]} 43. Kg3 {
[%emt 0:00:00]} Bc7 {[%emt 0:00:11]} 44. Kf4 {[%emt 0:00:00]} Bd8 {[%emt 0:00:
27]} 45. Kg4 {[%emt 0:00:00]} Bc7 {[%emt 0:01:21]} 46. Kf3 {[%emt 0:00:00]} Bd8
{[%emt 0:00:00]} 47. Ke2 {[%emt 0:00:00]} Bc7 {[%emt 0:00:00]} 48. Bf4 {
[%emt 0:00:00]} Bd8 {[%emt 0:00:00]} 49. Bg3 {[%emt 0:00:00]} Kd7 {[%emt 0:00:
00]} 50. Nf7 {[%emt 0:00:00]} Na3 {[%emt 0:00:00]} 51. Nxd8 {[%emt 0:00:00]}
Kxd8 {[%emt 0:00:00]} 52. Kd3 {[%emt 0:00:00]} Nc4 {[%emt 0:00:00]} 53. Bf4 {
[%emt 0:00:00]} Nb2+ {[%emt 0:00:00]} 54. Ke2 {[%emt 0:00:00]} Ke8 {[%emt 0:00:
00]} 55. Bd2 {[%emt 0:00:00]} Na4 {[%emt 0:00:00]} 56. Kf3 {[%emt 0:00:00]} Kf7
{[%emt 0:00:00]} 57. Kf4 {[%emt 0:00:00]} Kg8 {[%emt 0:00:00]} 58. Be1 {
[%emt 0:00:00]} Kf8 {[%emt 0:00:00]} 59. Kg5 {[%emt 0:00:00]} Kf7 {[%emt 0:00:
00]} 60. Bd2 {[%emt 0:00:00]} Nb2 {[%emt 0:00:00]} 61. Kg4 {[%emt 0:00:00]} Na4
{[%emt 0:00:00]} 62. Kf4 {[%emt 0:00:00]} Kf8 {[%emt 0:00:00]} 63. Kf3 {
[%emt 0:00:00]} Kf7 {[%emt 0:00:00]} 64. Kg4 {[%emt 0:00:00]} Kg8 {[%emt 0:00:
00]} 65. Kf4 {[%emt 0:00:00]} Kf8 {[%emt 0:00:00]} 66. Kg5 {[%emt 0:00:00]} Kf7
{[%emt 0:00:00]} 1/2-1/2

[Event "Gibraltar Masters 18th"]
[Site "Gibraltar"]
[Date "2020.01.21"]
[Round "1.13"]
[White "Tomilova, Elena"]
[Black "Maghsoodloo, Parham"]
[Result "0-1"]
[ECO "A13"]
[WhiteElo "2372"]
[BlackElo "2674"]
[PlyCount "98"]
[EventDate "2020.01.21"]
[EventType "swiss"]
[EventRounds "10"]
[EventCountry "GGB"]
[SourceTitle "BritBase"]
[Source "John Saunders"]
[SourceDate "2021.06.05"]
[SourceVersion "1"]
[SourceVersionDate "2021.06.05"]
[SourceQuality "1"]
[TimeControl "40/100:0"]
[WhiteClock "0:26:06"]
[BlackClock "1:04:28"]

1. c4 {[%emt 0:00:00]} e6 {[%emt 0:00:00]} 2. Nf3 {[%emt 0:00:00]} d5 {[%emt 0:
00:00]} 3. b3 {[%emt 0:00:00]} d4 {[%emt 0:00:00]} 4. g3 {[%emt 0:00:00]} c5 {
[%emt 0:00:00]} 5. Bg2 {[%emt 0:00:00]} Nc6 {[%emt 0:00:00]} 6. O-O {[%emt 0:
00:00]} Bd6 {[%emt 0:00:00]} 7. e3 {[%emt 0:00:00]} Nf6 {[%emt 0:00:00]} 8.
exd4 {[%emt 0:00:00]} cxd4 {[%emt 0:00:00]} 9. d3 {[%emt 0:00:00]} O-O {
[%emt 0:00:00]} 10. Bg5 {[%emt 0:00:00]} h6 {[%emt 0:00:00]} 11. Bxf6 {[%emt 0:
00:00]} Qxf6 {[%emt 0:00:00]} 12. Nbd2 {[%emt 0:00:00]} Qe7 {[%emt 0:00:00]}
13. Ne1 {[%emt 0:00:00]} e5 {[%emt 0:00:00]} 14. Nc2 {[%emt 0:00:00]} a5 {
[%emt 0:00:00]} 15. a3 {[%emt 0:00:00]} f5 {[%emt 0:00:00]} 16. f4 {[%emt 0:00:
00]} exf4 {[%emt 0:00:00]} 17. gxf4 {[%emt 0:00:00]} Qc7 {[%emt 0:00:00]} 18.
Qf3 {[%emt 0:00:00]} Ne7 {[%emt 0:00:00]} 19. Kh1 {[%emt 0:00:00]} Ng6 {
[%emt 0:00:00]} 20. Nxd4 {[%emt 0:00:00]} Bxf4 {[%emt 0:00:00]} 21. Qf2 {
[%emt 0:00:00]} Bd7 {[%emt 0:00:00]} 22. Bd5+ {[%emt 0:00:00]} Kh7 {[%emt 0:00:
00]} 23. Rg1 {[%emt 0:00:00]} Bxd2 {[%emt 0:00:00]} 24. Qxd2 {[%emt 0:00:00]}
Nf4 {[%emt 0:00:00]} 25. Bf3 {[%emt 0:00:00]} g5 {[%emt 0:00:00]} 26. Rae1 {
[%emt 0:00:00]} Rf7 {[%emt 0:00:00]} 27. Rgf1 {[%emt 0:00:00]} g4 {[%emt 0:00:
00]} 28. Bg2 {[%emt 0:00:00]} Nxg2 {[%emt 0:00:00]} 29. Qxg2 {[%emt 0:00:00]}
Qd6 {[%emt 0:00:00]} 30. Qd5 {[%emt 0:00:00]} Qxd5+ {[%emt 0:00:00]} 31. cxd5 {
[%emt 0:00:00]} Kg6 {[%emt 0:00:00]} 32. Ne6 {[%emt 0:00:00]} Rc8 {[%emt 0:00:
00]} 33. Nf4+ {[%emt 0:00:00]} Kg5 {[%emt 0:00:00]} 34. Re5 {[%emt 0:00:00]}
Rc3 {[%emt 0:00:00]} 35. Ne6+ {[%emt 0:00:00]} Kg6 {[%emt 0:00:00]} 36. Nf4+ {
[%emt 0:00:22]} Kf6 {[%emt 0:00:00]} 37. d4 {[%emt 0:00:34]} Rxb3 {[%emt 0:00:
00]} 38. Ne6 {[%emt 0:00:00]} Kg6 {[%emt 0:00:00]} 39. Nc5 {[%emt 0:00:00]}
Rxa3 {[%emt 0:00:00]} 40. Nxd7 {[%emt 0:00:00]} Rxd7 {[%emt 0:00:00]} 41. Rexf5
{[%emt 0:00:00]} Rf3 {[%emt 0:00:00]} 42. R1xf3 {[%emt 0:00:00]} gxf3 {[%emt 0:
00:00]} 43. Rxf3 {[%emt 0:00:00]} Rxd5 {[%emt 0:00:00]} 44. Ra3 {[%emt 0:00:00]
} Kf5 {[%emt 0:00:00]} 45. Rh3 {[%emt 0:00:00]} a4 {[%emt 0:00:00]} 46. Rh5+ {
[%emt 0:00:00]} Ke4 {[%emt 0:00:00]} 47. Rh4+ {[%emt 0:00:00]} Kd3 {[%emt 0:00:
00]} 48. Rxh6 {[%emt 0:00:00]} Ra5 {[%emt 0:00:00]} 49. d5 {[%emt 0:00:00]} a3
{[%emt 0:00:00]} 0-1

[Event "Gibraltar Masters 18th"]
[Site "Gibraltar"]
[Date "2020.01.21"]
[Round "1.14"]
[White "Saric, Ivan"]
[Black "Pigott, John C"]
[Result "1-0"]
[ECO "C12"]
[WhiteElo "2655"]
[BlackElo "2370"]
[PlyCount "111"]
[EventDate "2020.01.21"]
[EventType "swiss"]
[EventRounds "10"]
[EventCountry "GGB"]
[SourceTitle "BritBase"]
[Source "John Saunders"]
[SourceDate "2021.06.05"]
[SourceVersion "1"]
[SourceVersionDate "2021.06.05"]
[SourceQuality "1"]
[TimeControl "40/100:0"]
[WhiteClock "1:08:54"]
[BlackClock "0:20:53"]

1. e4 {[%emt 0:00:00]} e6 {[%emt 0:00:00]} 2. d4 {[%emt 0:00:00]} d5 {[%emt 0:
00:00]} 3. Nc3 {[%emt 0:00:00]} Nf6 {[%emt 0:00:00]} 4. Bg5 {[%emt 0:00:00]}
Bb4 {[%emt 0:00:00]} 5. e5 {[%emt 0:00:00]} h6 {[%emt 0:00:00]} 6. Bc1 {
[%emt 0:00:00]} Ne4 {[%emt 0:00:00]} 7. Qg4 {[%emt 0:00:00]} Kf8 {[%emt 0:00:
00]} 8. Nge2 {[%emt 0:00:00]} c5 {[%emt 0:00:00]} 9. a3 {[%emt 0:00:00]} h5 {
[%emt 0:00:00]} 10. Qf3 {[%emt 0:00:00]} Bxc3+ {[%emt 0:00:00]} 11. Nxc3 {
[%emt 0:00:00]} Nc6 {[%emt 0:00:00]} 12. Nxe4 {[%emt 0:00:00]} dxe4 {[%emt 0:
00:00]} 13. Qxe4 {[%emt 0:00:00]} Qxd4 {[%emt 0:00:00]} 14. Qxd4 {[%emt 0:00:
00]} Nxd4 {[%emt 0:00:00]} 15. Bd3 {[%emt 0:00:00]} c4 {[%emt 0:00:00]} 16. Be4
{[%emt 0:00:00]} Bd7 {[%emt 0:00:00]} 17. Be3 {[%emt 0:00:00]} Bc6 {[%emt 0:00:
00]} 18. Bxc6 {[%emt 0:00:00]} Nxc2+ {[%emt 0:00:00]} 19. Kd2 {[%emt 0:00:00]}
Nxa1 {[%emt 0:00:00]} 20. Bxb7 {[%emt 0:00:00]} Rb8 {[%emt 0:00:00]} 21. Be4 {
[%emt 0:00:00]} Nb3+ {[%emt 0:00:00]} 22. Kc3 {[%emt 0:00:00]} Na5 {[%emt 0:00:
00]} 23. Bxa7 {[%emt 0:00:00]} Rb3+ {[%emt 0:00:00]} 24. Kc2 {[%emt 0:00:00]}
Rb5 {[%emt 0:00:00]} 25. f4 {[%emt 0:00:00]} g6 {[%emt 0:00:00]} 26. a4 {
[%emt 0:00:00]} Rb3 {[%emt 0:00:00]} 27. Bd4 {[%emt 0:00:00]} Kg7 {[%emt 0:00:
00]} 28. Bc3 {[%emt 0:00:00]} Nb7 {[%emt 0:00:00]} 29. Rd1 {[%emt 0:00:00]} Nc5
{[%emt 0:00:00]} 30. Bc6 {[%emt 0:00:00]} Rc8 {[%emt 0:00:00]} 31. Rd6 {
[%emt 0:00:00]} Kf8 {[%emt 0:00:00]} 32. a5 {[%emt 0:00:00]} Ke7 {[%emt 0:00:
00]} 33. Bf3 {[%emt 0:00:00]} f5 {[%emt 0:00:00]} 34. a6 {[%emt 0:00:00]} Ne4 {
[%emt 0:00:00]} 35. Bxe4 {[%emt 0:00:00]} fxe4 {[%emt 0:00:00]} 36. Kd2 {
[%emt 0:00:00]} Rb5 {[%emt 0:00:00]} 37. Ke3 {[%emt 0:00:00]} Rd5 {[%emt 0:00:
00]} 38. Rb6 {[%emt 0:00:00]} Rd7 {[%emt 0:00:00]} 39. Bd4 {[%emt 0:00:00]}
Rdc7 {[%emt 0:00:41]} 40. Kxe4 {[%emt 0:00:00]} Rc6 {[%emt 0:00:00]} 41. Rb7+ {
[%emt 0:00:00]} R6c7 {[%emt 0:01:09]} 42. Rb4 {[%emt 0:00:00]} Ra8 {[%emt 0:00:
00]} 43. a7 {[%emt 0:00:00]} Kd7 {[%emt 0:00:00]} 44. g3 {[%emt 0:00:00]} Rcc8
{[%emt 0:00:00]} 45. h3 {[%emt 0:00:00]} Rc7 {[%emt 0:00:00]} 46. g4 {[%emt 0:
00:00]} hxg4 {[%emt 0:00:00]} 47. hxg4 {[%emt 0:00:00]} Rcc8 {[%emt 0:00:00]}
48. f5 {[%emt 0:00:00]} gxf5+ {[%emt 0:00:00]} 49. gxf5 {[%emt 0:00:00]} exf5+
{[%emt 0:00:00]} 50. Kxf5 {[%emt 0:00:00]} Rf8+ {[%emt 0:00:00]} 51. Ke4 {
[%emt 0:00:00]} c3 {[%emt 0:00:00]} 52. bxc3 {[%emt 0:00:00]} Kc6 {[%emt 0:00:
00]} 53. e6 {[%emt 0:00:00]} Kd6 {[%emt 0:00:00]} 54. Rb6+ {[%emt 0:00:00]} Kc7
{[%emt 0:00:00]} 55. Rb8 {[%emt 0:00:00]} Kc6 {[%emt 0:00:00]} 56. Be5 {
[%emt 0:00:00]} 1-0

[Event "Gibraltar Masters 18th"]
[Site "Gibraltar"]
[Date "2020.01.21"]
[Round "1.15"]
[White "Reimanis, Ritvars"]
[Black "Adhiban, Baskaran"]
[Result "1/2-1/2"]
[ECO "A43"]
[WhiteElo "2370"]
[BlackElo "2654"]
[PlyCount "63"]
[EventDate "2020.01.21"]
[EventType "swiss"]
[EventRounds "10"]
[EventCountry "GGB"]
[SourceTitle "BritBase"]
[Source "John Saunders"]
[SourceDate "2021.06.05"]
[SourceVersion "1"]
[SourceVersionDate "2021.06.05"]
[SourceQuality "1"]
[TimeControl "40/100:0"]
[WhiteClock "0:02:19"]
[BlackClock "0:01:45"]

1. d4 {[%emt 0:00:00]} g6 {[%emt 0:00:00]} 2. c4 {[%emt 0:00:00]} Bg7 {[%emt 0:
00:00]} 3. Nc3 {[%emt 0:00:00]} c5 {[%emt 0:00:00]} 4. d5 {[%emt 0:00:00]} d6 {
[%emt 0:00:00]} 5. e4 {[%emt 0:00:00]} e6 {[%emt 0:00:22]} 6. Nf3 {[%emt 0:00:
00]} exd5 {[%emt 0:00:00]} 7. cxd5 {[%emt 0:00:00]} a6 {[%emt 0:00:00]} 8. a4 {
[%emt 0:00:00]} Bg4 {[%emt 0:00:00]} 9. Qb3 {[%emt 0:00:00]} Bxf3 {[%emt 0:00:
00]} 10. gxf3 {[%emt 0:00:00]} Nd7 {[%emt 0:00:00]} 11. Be2 {[%emt 0:00:00]}
Ngf6 {[%emt 0:00:00]} 12. Nd1 {[%emt 0:00:00]} O-O {[%emt 0:00:00]} 13. Bf4 {
[%emt 0:00:00]} Qc7 {[%emt 0:00:00]} 14. h4 {[%emt 0:00:00]} Nh5 {[%emt 0:00:
00]} 15. Bd2 {[%emt 0:00:00]} f5 {[%emt 0:00:00]} 16. f4 {[%emt 0:00:00]} c4 {
[%emt 0:00:00]} 17. Rc1 {[%emt 0:00:00]} cxb3 {[%emt 0:00:00]} 18. Rxc7 {
[%emt 0:00:00]} Nhf6 {[%emt 0:00:00]} 19. exf5 {[%emt 0:00:00]} Nc5 {[%emt 0:
00:00]} 20. fxg6 {[%emt 0:00:00]} hxg6 {[%emt 0:00:00]} 21. Be3 {[%emt 0:00:00]
} Ne8 {[%emt 0:00:00]} 22. Bxc5 {[%emt 0:00:00]} Nxc7 {[%emt 0:00:00]} 23. Bxd6
{[%emt 0:00:00]} Nxd5 {[%emt 0:00:00]} 24. Bxf8 {[%emt 0:00:00]} Kxf8 {[%emt 0:
00:00]} 25. Rh3 {[%emt 0:00:00]} Nxf4 {[%emt 0:00:00]} 26. Rxb3 {[%emt 0:00:00]
} Re8 {[%emt 0:00:00]} 27. Ne3 {[%emt 0:00:00]} Re7 {[%emt 0:00:00]} 28. Bf3 {
[%emt 0:00:00]} Bxb2 {[%emt 0:00:00]} 29. Rxb7 {[%emt 0:00:00]} Nd3+ {[%emt 0:
00:22]} 30. Ke2 {[%emt 0:00:02]} Rxb7 {[%emt 0:00:00]} 31. Bxb7 {[%emt 0:00:00]
} Nc5 {[%emt 0:00:00]} 32. Bc6 {[%emt 0:00:00]} 1/2-1/2

[Event "Gibraltar Masters 18th"]
[Site "Gibraltar"]
[Date "2020.01.21"]
[Round "1.16"]
[White "Esipenko, Andrey"]
[Black "Padmini, Rout"]
[Result "1-0"]
[ECO "D33"]
[WhiteElo "2654"]
[BlackElo "2369"]
[PlyCount "103"]
[EventDate "2020.01.21"]
[EventType "swiss"]
[EventRounds "10"]
[EventCountry "GGB"]
[SourceTitle "BritBase"]
[Source "John Saunders"]
[SourceDate "2021.06.05"]
[SourceVersion "1"]
[SourceVersionDate "2021.06.05"]
[SourceQuality "1"]
[TimeControl "40/100:0"]
[WhiteClock "0:45:36"]
[BlackClock "0:42:37"]

1. c4 {[%emt 0:00:00]} e6 {[%emt 0:00:00]} 2. Nc3 {[%emt 0:00:00]} c5 {[%emt 0:
00:00]} 3. Nf3 {[%emt 0:00:00]} Nc6 {[%emt 0:00:00]} 4. g3 {[%emt 0:00:00]} d5
{[%emt 0:00:00]} 5. cxd5 {[%emt 0:00:00]} exd5 {[%emt 0:00:00]} 6. d4 {[%emt 0:
00:00]} c4 {[%emt 0:00:00]} 7. Bg2 {[%emt 0:00:00]} Bb4 {[%emt 0:00:00]} 8. Ne5
{[%emt 0:00:00]} Nge7 {[%emt 0:00:00]} 9. O-O {[%emt 0:00:00]} O-O {[%emt 0:00:
00]} 10. Nxc6 {[%emt 0:00:00]} bxc6 {[%emt 0:00:00]} 11. Bd2 {[%emt 0:00:00]}
a5 {[%emt 0:00:00]} 12. Na4 {[%emt 0:00:00]} Bd6 {[%emt 0:00:00]} 13. b3 {
[%emt 0:00:00]} Ba6 {[%emt 0:00:00]} 14. Re1 {[%emt 0:00:00]} Nf5 {[%emt 0:00:
00]} 15. e3 {[%emt 0:00:00]} Ba3 {[%emt 0:00:00]} 16. bxc4 {[%emt 0:00:00]}
Bxc4 {[%emt 0:00:00]} 17. Qc2 {[%emt 0:00:00]} Nd6 {[%emt 0:00:00]} 18. Bc1 {
[%emt 0:00:00]} Bxc1 {[%emt 0:00:00]} 19. Rexc1 {[%emt 0:00:00]} Rb8 {[%emt 0:
00:00]} 20. Nb2 {[%emt 0:00:00]} Qf6 {[%emt 0:00:00]} 21. Qd2 {[%emt 0:00:00]}
Rb4 {[%emt 0:00:00]} 22. a3 {[%emt 0:00:00]} Rb3 {[%emt 0:00:00]} 23. Rc3 {
[%emt 0:00:00]} Rb7 {[%emt 0:00:00]} 24. e4 {[%emt 0:00:00]} Rfb8 {[%emt 0:00:
00]} 25. Rc2 {[%emt 0:00:00]} Qg6 {[%emt 0:00:00]} 26. Nxc4 {[%emt 0:00:00]}
Nxc4 {[%emt 0:00:00]} 27. Qc1 {[%emt 0:00:00]} Rd7 {[%emt 0:00:00]} 28. exd5 {
[%emt 0:00:00]} cxd5 {[%emt 0:00:00]} 29. Bxd5 {[%emt 0:00:00]} Rxd5 {[%emt 0:
00:00]} 30. Rxc4 {[%emt 0:00:00]} Rbd8 {[%emt 0:00:00]} 31. Qc3 {[%emt 0:00:00]
} h5 {[%emt 0:00:00]} 32. h4 {[%emt 0:00:00]} Qg4 {[%emt 0:00:00]} 33. Re1 {
[%emt 0:00:00]} g6 {[%emt 0:00:17]} 34. Kg2 {[%emt 0:00:00]} Rxd4 {[%emt 0:00:
42]} 35. Rxd4 {[%emt 0:00:00]} Qxd4 {[%emt 0:00:00]} 36. Qxa5 {[%emt 0:00:00]}
Rd5 {[%emt 0:00:00]} 37. Qb4 {[%emt 0:00:00]} Rd8 {[%emt 0:00:06]} 38. Re8+ {
[%emt 0:00:04]} Kh7 {[%emt 0:00:00]} 39. Rxd8 {[%emt 0:00:00]} Qxd8 {[%emt 0:
00:00]} 40. Qb7 {[%emt 0:00:38]} Kg7 {[%emt 0:00:00]} 41. a4 {[%emt 0:01:34]}
Qa5 {[%emt 0:00:42]} 42. Qb5 {[%emt 0:00:10]} Qa8+ {[%emt 0:00:00]} 43. Kg1 {
[%emt 0:00:00]} Qe4 {[%emt 0:00:00]} 44. a5 {[%emt 0:00:00]} Qe1+ {[%emt 0:00:
00]} 45. Kg2 {[%emt 0:00:00]} Qe4+ {[%emt 0:00:00]} 46. Kh2 {[%emt 0:00:00]}
Kh7 {[%emt 0:00:00]} 47. a6 {[%emt 0:00:00]} Qe1 {[%emt 0:00:00]} 48. Qb6 {
[%emt 0:00:00]} Qe2 {[%emt 0:00:00]} 49. a7 {[%emt 0:00:00]} Qf3 {[%emt 0:00:
00]} 50. Qd4 {[%emt 0:00:00]} Qb7 {[%emt 0:00:00]} 51. Qa4 {[%emt 0:00:00]} Qa8
{[%emt 0:00:00]} 52. Qa5 {[%emt 0:00:00]} 1-0

[Event "Gibraltar Masters 18th"]
[Site "Gibraltar"]
[Date "2020.01.21"]
[Round "1.17"]
[White "Melia, Salome"]
[Black "Lagarde, Maxime"]
[Result "0-1"]
[ECO "B33"]
[WhiteElo "2368"]
[BlackElo "2651"]
[PlyCount "84"]
[EventDate "2020.01.21"]
[EventType "swiss"]
[EventRounds "10"]
[EventCountry "GGB"]
[SourceTitle "BritBase"]
[Source "John Saunders"]
[SourceDate "2021.06.05"]
[SourceVersion "1"]
[SourceVersionDate "2021.06.05"]
[SourceQuality "1"]
[TimeControl "40/100:0"]
[WhiteClock "0:00:35"]
[BlackClock "0:22:19"]

1. e4 {[%emt 0:00:00]} c5 {[%emt 0:00:00]} 2. Nf3 {[%emt 0:00:00]} e6 {[%emt 0:
00:00]} 3. d4 {[%emt 0:00:00]} cxd4 {[%emt 0:00:00]} 4. Nxd4 {[%emt 0:00:00]}
Nf6 {[%emt 0:00:00]} 5. Nc3 {[%emt 0:00:00]} Nc6 {[%emt 0:00:00]} 6. Ndb5 {
[%emt 0:00:00]} d6 {[%emt 0:00:00]} 7. Bf4 {[%emt 0:00:00]} e5 {[%emt 0:00:00]}
8. Bg5 {[%emt 0:00:00]} a6 {[%emt 0:00:00]} 9. Na3 {[%emt 0:00:00]} b5 {
[%emt 0:00:00]} 10. Nd5 {[%emt 0:00:00]} Be7 {[%emt 0:00:00]} 11. Bxf6 {
[%emt 0:00:00]} Bxf6 {[%emt 0:00:00]} 12. c3 {[%emt 0:00:00]} Ne7 {[%emt 0:00:
00]} 13. Nxf6+ {[%emt 0:00:00]} gxf6 {[%emt 0:00:00]} 14. Nc2 {[%emt 0:00:00]}
Bb7 {[%emt 0:00:00]} 15. a4 {[%emt 0:00:00]} Bxe4 {[%emt 0:00:00]} 16. axb5 {
[%emt 0:00:00]} Qb6 {[%emt 0:00:00]} 17. Na3 {[%emt 0:00:00]} d5 {[%emt 0:00:
00]} 18. bxa6 {[%emt 0:00:00]} Qxb2 {[%emt 0:00:00]} 19. Qc1 {[%emt 0:00:00]}
Qxc1+ {[%emt 0:00:00]} 20. Rxc1 {[%emt 0:00:00]} O-O {[%emt 0:00:00]} 21. Be2 {
[%emt 0:00:00]} Rfb8 {[%emt 0:00:00]} 22. O-O {[%emt 0:00:00]} Rb3 {[%emt 0:00:
00]} 23. Ra1 {[%emt 0:00:00]} Rxc3 {[%emt 0:00:00]} 24. Rfc1 {[%emt 0:00:00]}
Rxc1+ {[%emt 0:00:00]} 25. Rxc1 {[%emt 0:00:00]} d4 {[%emt 0:00:00]} 26. Bb5 {
[%emt 0:00:00]} Bc6 {[%emt 0:00:00]} 27. Bc4 {[%emt 0:00:00]} Nd5 {[%emt 0:00:
00]} 28. Rb1 {[%emt 0:00:00]} Kg7 {[%emt 0:00:00]} 29. f3 {[%emt 0:00:00]} Ne3
{[%emt 0:00:00]} 30. Bd3 {[%emt 0:00:00]} Bd5 {[%emt 0:00:00]} 31. Rb6 {
[%emt 0:00:28]} Rc8 {[%emt 0:00:00]} 32. Kf2 {[%emt 0:00:31]} Rc3 {[%emt 0:00:
00]} 33. Nb1 {[%emt 0:00:09]} Rxd3 {[%emt 0:00:00]} 34. a7 {[%emt 0:00:00]} Rd1
{[%emt 0:00:00]} 35. Rb5 {[%emt 0:00:00]} Rf1+ {[%emt 0:00:00]} 36. Kg3 {
[%emt 0:00:00]} Rg1 {[%emt 0:00:00]} 37. Rxd5 {[%emt 0:00:00]} Rxg2+ {[%emt 0:
00:00]} 38. Kh3 {[%emt 0:00:00]} Ra2 {[%emt 0:00:00]} 39. Rd7 {[%emt 0:00:00]}
Nf1 {[%emt 0:00:00]} 40. Kg4 {[%emt 0:00:00]} Kg6 {[%emt 0:00:00]} 41. f4 {
[%emt 0:01:39]} f5+ {[%emt 0:00:00]} 42. Kf3 {[%emt 0:00:00]} e4# {[%emt 0:00:
05]} 0-1